bitfinex/quotes_BTCUSD_20240908
["timestamp","ask_amount","ask_price","bid_price","bid_amount"]
[1725839135545,2.36893111,55072.0,55071.0,0.00263]
[1725839135990,2.36793111,55072.0,55071.0,0.00263]
[1725839136198,2.37093111,55072.0,55071.0,0.00363]
[1725839136415,2.55474803,55072.0,55071.0,0.00363]
[1725839136631,2.54374803,55072.0,55071.0,0.00263]
[1725839136836,2.35576496,55072.0,55071.0,0.00163]
[1725839137066,2.18294804,55072.0,55071.0,0.00263]
[1725839137292,2.17494804,55072.0,55071.0,0.00263]
[1725839137734,2.18894804,55072.0,55071.0,0.00263]
[1725839138634,2.37393111,55072.0,55071.0,0.00263]
[1725839138847,2.38193111,55072.0,55071.0,0.00263]
[1725839139069,2.37893111,55072.0,55071.0,0.00163]
[1725839139596,2.39093111,55072.0,55071.0,0.00263]
[1725839139817,2.39093111,55072.0,55071.0,0.00163]
[1725839139818,2.18628617,55072.0,55071.0,0.00163]
[1725839140036,2.16428617,55072.0,55071.0,0.00163]
[1725839140250,2.16428617,55072.0,55071.0,0.00263]
[1725839140251,2.18928617,55072.0,55071.0,0.00263]
[1725839140699,2.36126924,55072.0,55071.0,0.00263]
[1725839140909,2.37526924,55072.0,55071.0,0.00263]
[1725839141329,2.36126924,55072.0,55071.0,0.00263]
[1725839141537,2.36226924,55072.0,55071.0,0.00163]
[1725839141759,2.16428617,55072.0,55071.0,0.00263]
[1725839141983,2.17528617,55072.0,55071.0,0.00263]
[1725839142410,1.30825817,55072.0,55071.0,0.00163]
[1725839142618,1.31925817,55072.0,55071.0,0.00263]
[1725839142827,1.4824192,55072.0,55071.0,0.00263]
[1725839143063,1.35311213,55072.0,55071.0,0.00163]
[1725839143297,1.35511213,55072.0,55071.0,0.00163]
[1725839143540,1.36611213,55072.0,55071.0,0.00263]
[1725839143760,1.36012977,55072.0,55071.0,0.00263]
[1725839143976,1.34712977,55072.0,55071.0,0.00263]
[1725839144202,1.37012977,55072.0,55071.0,0.00263]
[1725839144431,1.38312977,55072.0,55071.0,0.00263]
[1725839144646,1.35912977,55072.0,55071.0,0.00163]
[1725839144869,1.37112977,55072.0,55071.0,0.00163]
[1725839145101,1.38312977,55072.0,55071.0,0.00263]
[1725839145574,1.2139511,55072.0,55071.0,0.00163]
[1725839145780,1.2239511,55072.0,55071.0,0.00263]
[1725839146219,1.2239511,55072.0,55071.0,0.00163]
[1725839146220,1.2139511,55072.0,55071.0,0.00163]
[1725839146439,1.2019511,55072.0,55071.0,0.00163]
[1725839146653,1.40393417,55072.0,55071.0,0.00163]
[1725839147082,1.39193417,55072.0,55071.0,0.00163]
[1725839147293,1.40293417,55072.0,55071.0,0.00163]
[1725839147497,1.39193417,55072.0,55071.0,0.00163]
[1725839147700,1.39393417,55072.0,55071.0,0.00163]
[1725839147908,1.39993417,55072.0,55071.0,0.00163]
[1725839148119,1.39793417,55072.0,55071.0,0.00163]
[1725839148337,1.39293417,55072.0,55071.0,0.00163]
[1725839149202,1.40293417,55072.0,55071.0,0.00263]
[1725839149551,2.22289725,55072.0,55071.0,0.00263]
[1725839149654,2.21089725,55072.0,55071.0,0.00163]
[1725839149879,2.21789725,55072.0,55071.0,0.00163]
[1725839150084,1.92536925,55072.0,55071.0,0.00163]
[1725839150308,1.91936925,55072.0,55071.0,0.00163]
[1725839150517,1.93036925,55072.0,55071.0,0.00163]
[1725839151169,2.21589725,55072.0,55071.0,0.00163]
[1725839151377,2.20489725,55072.0,55071.0,0.00163]
[1725839151801,2.21389725,55072.0,55071.0,0.00263]
[1725839152035,2.21489725,55072.0,55071.0,0.00263]
[1725839152704,2.20589725,55072.0,55071.0,0.00163]
[1725839152924,2.20589725,55072.0,55071.0,0.00263]
[1725839152925,2.52337467,55072.0,55071.0,0.00263]
[1725839153144,2.51337467,55072.0,55071.0,0.00263]
[1725839153397,2.52237467,55072.0,55071.0,0.00263]
[1725839153832,2.51137467,55072.0,55071.0,0.00263]
[1725839154052,2.52012432,55072.0,55071.0,0.00263]
[1725839154270,2.38969377,55072.0,55071.0,0.00263]
[1725839154501,2.37869377,55072.0,55071.0,0.00163]
[1725839154739,2.38769377,55072.0,55071.0,0.00263]
[1725839155192,2.37869377,55072.0,55071.0,0.00163]
[1725839155416,2.38969377,55072.0,55071.0,0.00263]
[1725839155870,2.54503329,55072.0,55071.0,0.00263]
[1725839156076,2.38969377,55072.0,55071.0,0.00263]
[1725839161220,2.2047107,55072.0,55071.0,0.00263]
[1725839161436,2.2241827,55072.0,55071.0,0.00263]
[1725839161667,2.2011827,55072.0,55071.0,0.00263]
[1725839161890,2.03609092,55072.0,55071.0,0.56363]
[1725839162343,1.97876446,55072.0,55071.0,0.56363]
[1725839162596,0.1069672,55072.0,55071.0,0.619993]
[1725839162882,0.1069672,55072.0,55071.0,0.648993]
[1725839163104,0.1069672,55072.0,55071.0,0.067993]
[1725839163105,0.05434822,55072.0,55071.0,0.067993]
[1725839163377,0.0284746,55075.0,55074.0,0.145259]
[1725839163621,0.000815,55077.0,55075.0,0.1957]
[1725839163850,0.000815,55077.0,55076.0,0.3436]
[1725839164072,0.000815,55077.0,55076.0,0.5267]
[1725839165212,0.000815,55077.0,55076.0,0.5257]
[1725839165438,0.000815,55077.0,55076.0,0.5347]
[1725839165439,0.146066,55077.0,55076.0,0.5347]
[1725839165661,0.000815,55077.0,55076.0,0.60817]
[1725839165883,0.001815,55077.0,55076.0,0.61317]
[1725839166099,0.002815,55077.0,55076.0,0.62317]
[1725839166326,0.002815,55077.0,55076.0,0.5587]
[1725839166327,0.001815,55077.0,55076.0,0.5587]
[1725839166774,0.002815,55077.0,55076.0,0.5707]
[1725839166980,0.147066,55077.0,55076.0,0.5497]
[1725839167205,0.146066,55077.0,55076.0,0.5447]
[1725839167444,0.147066,55077.0,55076.0,0.5447]
[1725839167670,0.147066,55077.0,55076.0,0.5587]
[1725839167671,0.461568,55077.0,55076.0,0.5587]
[1725839168137,0.460568,55077.0,55076.0,0.5447]
[1725839168363,0.460568,55077.0,55076.0,0.60007]
[1725839168597,0.460568,55077.0,55076.0,0.59807]
[1725839168842,0.171066,55077.0,55076.0,0.5547]
[1725839169080,0.171066,55077.0,55076.0,0.5467]
[1725839169081,0.170066,55077.0,55076.0,0.5467]
[1725839169308,0.169066,55077.0,55076.0,0.5347]
[1725839169532,0.169066,55077.0,55076.0,0.5457]
[1725839169760,0.169066,55077.0,55076.0,0.5347]
[1725839169982,0.169066,55077.0,55076.0,0.5427]
[1725839170453,0.170066,55077.0,55076.0,0.5457]
[1725839170879,0.169066,55077.0,55076.0,0.5347]
[1725839171104,0.169066,55077.0,55076.0,0.5427]
[1725839171231,0.170066,55077.0,55076.0,0.5427]
[1725839171454,0.75107,55077.0,55076.0,0.5327]
[1725839171668,0.75107,55077.0,55076.0,0.5347]
[1725839171912,0.75207,55077.0,55076.0,0.5457]
[1725839172385,0.75307,55077.0,55076.0,0.018]
[1725839172622,0.75307,55077.0,55076.0,0.011]
[1725839172623,0.85107,55077.0,55076.0,0.011]
[1725839173135,0.85207,55077.0,55076.0,0.018]
[1725839173372,0.85107,55077.0,55076.0,0.011]
[1725839173595,0.85107,55077.0,55076.0,0.013]
[1725839173846,1.140572,55077.0,55076.0,0.002]
[1725839174069,1.22210543,55077.0,55076.0,0.002]
[1725839174313,1.34108686,55077.0,55076.0,0.01]
[1725839174527,1.23237561,55077.0,55076.0,0.002]
[1725839174757,1.23137561,55077.0,55076.0,0.002]
[1725839175005,0.72632,55072.0,55071.0,0.00163]
[1725839175242,1.04534732,55072.0,55071.0,0.00163]
[1725839175701,1.07382461,55072.0,55071.0,0.00163]
[1725839175933,1.36435261,55072.0,55071.0,0.00163]
[1725839176159,1.25563478,55072.0,55071.0,0.00163]
[1725839176390,1.39297754,55072.0,55071.0,0.00163]
[1725839177102,1.26125631,55072.0,55071.0,0.00163]
[1725839177331,1.26624783,55072.0,55071.0,0.00163]
[1725839177803,0.97373047,55072.0,55071.0,0.00163]
[1725839178035,0.97373047,55072.0,55071.0,0.52223]
[1725839178262,0.97073047,55072.0,55071.0,0.574453]
[1725839178705,0.97073047,55072.0,55071.0,0.576453]
[1725839178964,0.68220247,55072.0,55071.0,0.576453]
[1725839179187,0.65920247,55072.0,55071.0,0.576453]
[1725839179413,0.66120247,55072.0,55071.0,0.52423]
[1725839179635,0.65720247,55072.0,55071.0,0.52423]
[1725839180071,0.65720247,55072.0,55071.0,0.52223]
[1725839180285,0.65820247,55072.0,55071.0,0.52223]
[1725839180566,0.65901747,55072.0,55071.0,0.52223]
[1725839180786,0.65801747,55072.0,55071.0,0.52223]
[1725839181224,0.65801747,55072.0,55071.0,0.52423]
[1725839181688,0.94854547,55072.0,55071.0,0.52523]
[1725839181906,0.94854547,55072.0,55071.0,0.52623]
[1725839182369,0.86799322,55072.0,55071.0,0.53123]
[1725839182583,0.86799322,55072.0,55071.0,0.52623]
[1725839182832,0.86799322,55072.0,55071.0,0.53023]
[1725839183068,0.89099322,55072.0,55071.0,0.19153]
[1725839183324,0.89099322,55072.0,55071.0,0.18753]
[1725839183575,0.89099322,55072.0,55071.0,0.01063]
[1725839184011,0.89099322,55072.0,55071.0,0.19093]
[1725839184012,0.68202874,55072.0,55071.0,0.19093]
[1725839184230,0.18693722,55072.0,55071.0,0.53953]
[1725839184480,0.15745993,55072.0,55071.0,0.592383]
[1725839184699,0.21383488,55072.0,55071.0,0.592383]
[1725839185150,0.21483488,55072.0,55071.0,0.597383]
[1725839185375,0.45198793,55072.0,55071.0,0.602383]
[1725839185644,0.60336647,55072.0,55071.0,0.597383]
[1725839185875,0.54998793,55072.0,55071.0,0.603383]
[1725839186097,0.31383847,55072.0,55071.0,0.603383]
[1725839186327,0.15619614,55072.0,55071.0,0.598383]
[1725839186555,0.15619614,55072.0,55071.0,0.607383]
[1725839186786,0.15719614,55072.0,55071.0,0.614383]
[1725839187018,0.15719614,55072.0,55071.0,0.634383]
[1725839187210,0.18338282,55072.0,55071.0,0.627383]
[1725839187464,0.18438282,55072.0,55071.0,0.634383]
[1725839187690,0.18538282,55072.0,55071.0,0.640383]
[1725839187936,0.18338282,55072.0,55071.0,0.621383]
[1725839188200,0.001815,55072.0,55071.0,0.77265]
[1725839188427,0.05619709,55072.0,55071.0,0.77665]
[1725839188905,0.05719709,55072.0,55071.0,0.78265]
[1725839189350,0.05719709,55072.0,55071.0,1.073184]
[1725839189812,0.001815,55072.0,55071.0,1.063184]
[1725839190046,0.002815,55072.0,55071.0,1.073184]
[1725839190488,0.001815,55072.0,55071.0,1.063184]
[1725839190745,0.002815,55072.0,55071.0,1.073184]
[1725839191166,0.001815,55072.0,55071.0,1.067184]
[1725839191375,0.002815,55072.0,55071.0,1.072184]
[1725839191583,0.002815,55072.0,55071.0,1.067184]
[1725839192034,0.003815,55072.0,55071.0,1.072184]
[1725839192250,0.05719931,55072.0,55071.0,1.067184]
[1725839192735,0.05719931,55072.0,55071.0,1.062184]
[1725839193193,0.05819931,55072.0,55071.0,1.072184]
[1725839193693,0.05819931,55072.0,55071.0,0.57953]
[1725839196461,0.003815,55072.0,55071.0,0.57953]
[1725839197643,0.05821397,55072.0,55071.0,0.57953]
[1725839197862,0.003815,55072.0,55071.0,0.57953]
[1725839198547,0.003815,55072.0,55071.0,0.724797]
[1725839198806,0.003815,55072.0,55071.0,0.8263315]
[1725839199046,0.003815,55072.0,55071.0,1.1168655]
[1725839200161,0.003815,55072.0,55071.0,0.724797]
[1725839200588,0.003815,55072.0,55071.0,1.015331]
[1725839201434,0.003815,55072.0,55071.0,0.724797]
[1725839201870,0.003815,55072.0,55071.0,0.57953]
[1725839202097,0.003815,55072.0,55071.0,0.724797]
[1725839202343,0.003815,55072.0,55071.0,0.8263315]
[1725839202758,0.003815,55072.0,55071.0,1.1168655]
[1725839203935,0.003815,55072.0,55071.0,0.8263315]
[1725839204157,0.003815,55072.0,55071.0,1.1168655]
[1725839205420,0.05821397,55072.0,55071.0,1.1168655]
[1725839206580,0.05821397,55072.0,55071.0,0.724797]
[1725839207008,0.05821397,55072.0,55071.0,1.015331]
[1725839209752,0.05821397,55072.0,55071.0,1.305865]
[1725839210009,0.02637819,55072.0,55071.0,1.305865]
[1725839210235,0.11019575,55074.0,55073.0,0.746307]
[1725839210445,0.08172181,55074.0,55073.0,1.0759541]
[1725839211081,0.08172181,55074.0,55073.0,1.0849541]
[1725839211362,0.08172181,55074.0,55073.0,1.4289541]
[1725839211796,0.08272181,55074.0,55073.0,1.4369541]
[1725839213095,0.08372181,55074.0,55073.0,1.4479541]
[1725839214005,0.002,55074.0,55073.0,1.4479541]
[1725839214217,0.11312602,55074.0,55073.0,1.4479541]
[1725839214659,0.11312602,55074.0,55073.0,1.016784]
[1725839214846,0.11312917,55074.0,55073.0,1.016784]
[1725839215984,0.11312917,55074.0,55073.0,1.307307]
[1725839216233,0.08374056,55074.0,55073.0,1.307307]
[1725839216523,0.05649264,55074.0,55073.0,1.307307]
[1725839216742,0.05649264,55074.0,55073.0,1.1767312]
[1725839217192,0.05730764,55074.0,55073.0,1.4672542]
[1725839217424,0.23623107,55080.0,55073.0,1.4672542]
[1725839217425,0.13622705,55086.0,55085.0,0.2006]
[1725839217682,0.16347728,55094.0,55093.0,0.509718]
[1725839217683,0.10896526,55094.0,55093.0,0.509718]
[1725839217939,0.05446986,55098.0,55096.0,0.02]
[1725839218187,0.05446986,55102.0,55101.0,0.145187]
[1725839218427,0.05440305,55106.0,55105.0,0.153177]
[1725839218618,0.05440305,55107.0,55106.0,0.008]
[1725839218867,0.07146089,55107.0,55106.0,0.008]
[1725839219112,0.08241958,55110.0,55106.0,0.007]
[1725839219113,0.05440305,55109.0,55106.0,0.007]
[1725839219337,0.000815,55110.0,55109.0,0.006]
[1725839219558,0.000815,55110.0,55109.0,0.005]
[1725839219781,0.100815,55110.0,55109.0,0.005]
[1725839220009,0.000815,55110.0,55109.0,0.005]
[1725839220254,0.435523,55106.0,55105.0,0.006]
[1725839220461,1.370872,55106.0,55105.0,0.006]
[1725839220926,0.435555,55102.0,55101.0,0.01]
[1725839221141,0.535555,55102.0,55101.0,0.01]
[1725839221396,0.558555,55102.0,55101.0,0.01]
[1725839221635,0.268185,55102.0,55101.0,0.01]
[1725839221886,0.558555,55102.0,55101.0,0.01]
[1725839222104,0.58701575,55102.0,55101.0,0.01]
[1725839223066,0.58701575,55102.0,55101.0,0.012]
[1725839223302,0.58701575,55102.0,55101.0,0.013]
[1725839223519,0.29664575,55102.0,55101.0,0.013]
[1725839223957,0.12846075,55102.0,55101.0,0.520087]
[1725839224186,0.12846075,55102.0,55101.0,1.3636849]
[1725839224187,0.02846075,55102.0,55101.0,1.3636849]
[1725839224641,0.100815,55110.0,55105.0,0.145174]
[1725839224642,0.15516799,55110.0,55105.0,0.145174]
[1725839224888,0.15516799,55110.0,55106.0,0.145174]
[1725839225102,0.100815,55110.0,55106.0,0.145174]
[1725839225572,0.24598,55110.0,55104.0,0.165178]
[1725839226304,0.145168,55109.0,55104.0,0.165178]
[1725839226517,0.3527,55107.0,55104.0,0.025]
[1725839226720,0.145177,55105.0,55101.0,0.025]
[1725839226976,0.145177,55105.0,55104.0,0.01]
[1725839227210,0.268177,55105.0,55104.0,0.01]
[1725839227906,0.123,55105.0,55104.0,0.01]
[1725839228127,0.268177,55105.0,55104.0,0.01]
[1725839228348,0.558531,55105.0,55104.0,0.01]
[1725839228780,0.558531,55105.0,55104.0,0.005]
[1725839228994,0.558531,55105.0,55104.0,0.015]
[1725839230297,0.58699092,55105.0,55104.0,0.015]
[1725839230784,1.7069889,55105.0,55104.0,0.005]
[1725839231704,1.7069889,55105.0,55104.0,0.002]
[1725839231936,0.725925,55102.0,55101.0,0.00163]
[1725839232176,1.373625,55102.0,55101.0,0.00163]
[1725839232406,1.663995,55102.0,55101.0,0.00163]
[1725839232643,1.665995,55102.0,55101.0,0.00163]
[1725839232878,1.74734108,55102.0,55101.0,0.00163]
[1725839233336,1.663995,55102.0,55101.0,0.00163]
[1725839233550,1.71819615,55102.0,55101.0,0.00163]
[1725839233729,1.71819615,55102.0,55101.0,0.00263]
[1725839234481,1.665995,55102.0,55101.0,0.00263]
[1725839234733,1.74734108,55102.0,55101.0,0.00263]
[1725839235202,1.74734108,55102.0,55101.0,0.00163]
[1725839235413,2.14534807,55102.0,55101.0,0.00163]
[1725839235666,2.27382042,55102.0,55101.0,0.00363]
[1725839235904,1.98037591,55102.0,55101.0,0.00363]
[1725839236121,1.69000591,55102.0,55101.0,0.00363]
[1725839236547,1.7944319,55102.0,55101.0,0.00363]
[1725839237021,1.7974319,55102.0,55101.0,0.00163]
[1725839237231,1.7944319,55102.0,55101.0,0.00163]
[1725839237447,1.7964319,55102.0,55101.0,0.00263]
[1725839237681,1.8054319,55102.0,55101.0,0.00263]
[1725839237888,1.8034319,55102.0,55101.0,0.00263]
[1725839238107,1.88298898,55102.0,55101.0,0.00363]
[1725839238407,2.30893579,55102.0,55101.0,0.00363]
[1725839238622,2.17835898,55102.0,55101.0,1e-06]
[1725839238890,2.17835898,55102.0,55084.0,0.4764]
[1725839238891,1.26215,55085.0,55084.0,0.4764]
[1725839239136,1.26215,55085.0,55081.0,0.55430836]
[1725839239137,0.437714,55082.0,55081.0,0.55430836]
[1725839239350,0.437714,55082.0,55074.0,0.14294931]
[1725839239351,0.435768,55075.0,55074.0,0.14294931]
[1725839239602,0.145261,55073.0,55072.0,0.025]
[1725839241150,0.145261,55073.0,55072.0,0.03]
[1725839241375,0.145261,55073.0,55072.0,0.034]
[1725839241639,0.145261,55073.0,55072.0,0.025]
[1725839242209,0.145261,55073.0,55072.0,0.03]
[1725839243025,0.146261,55073.0,55072.0,0.03]
[1725839243739,0.001,55073.0,55072.0,0.0994004]
[1725839243965,0.001,55073.0,55072.0,0.7284924]
[1725839244650,0.145253,55077.0,55072.0,0.363564]
[1725839244909,0.001,55073.0,55072.0,0.367564]
[1725839245349,0.145254,55076.0,55072.0,0.363564]
[1725839245565,0.145254,55076.0,55072.0,0.2183]
[1725839246014,0.001,55073.0,55072.0,0.2183]
[1725839246251,0.145254,55076.0,55072.0,0.2183]
[1725839246464,0.145256,55075.0,55072.0,0.2183]
[1725839246691,0.001,55073.0,55072.0,0.2233]
[1725839247344,0.001,55073.0,55072.0,0.2183]
[1725839247548,0.145256,55075.0,55072.0,0.2233]
[1725839247771,0.146256,55075.0,55074.0,0.02]
[1725839248421,0.146256,55075.0,55074.0,0.019]
[1725839249094,0.145256,55075.0,55074.0,0.019]
[1725839249316,0.145256,55075.0,55074.0,0.018]
[1725839250036,0.147256,55075.0,55074.0,0.018]
[1725839251149,0.002,55075.0,55074.0,0.0874099]
[1725839251389,0.002,55075.0,55074.0,1.0550869]
[1725839251604,0.002,55075.0,55074.0,1.6361229]
[1725839251823,0.002,55075.0,55074.0,2.8905229]
[1725839252282,0.001,55075.0,55074.0,2.8905229]
[1725839252762,0.435659,55089.0,55088.0,0.2017]
[1725839252971,0.24522,55089.0,55088.0,0.004]
[1725839253199,0.24522,55089.0,55088.0,0.003]
[1725839253462,0.145201,55096.0,55095.0,0.003]
[1725839253912,0.05424028,55098.0,55096.0,0.003]
[1725839254147,0.05424028,55101.0,55099.0,0.145193]
[1725839254423,0.05424028,55101.0,55098.0,0.02]
[1725839254424,0.05424028,55102.0,55100.0,0.16519]
[1725839254644,0.08136042,55104.0,55103.0,0.02]
[1725839254645,0.05424028,55104.0,55103.0,0.02]
[1725839254856,0.145176,55106.0,55105.0,0.018]
[1725839255138,0.145172,55107.0,55106.0,0.018]
[1725839255572,0.145172,55107.0,55106.0,0.017]
[1725839255787,0.435516,55107.0,55106.0,0.017]
[1725839256228,0.535516,55107.0,55106.0,0.016]
[1725839256673,0.535516,55107.0,55106.0,0.02]
[1725839256901,0.535516,55107.0,55106.0,0.024]
[1725839257114,0.56397456,55107.0,55106.0,0.024]
[1725839257326,0.56397456,55107.0,55106.0,0.02]
[1725839257740,0.56397456,55107.0,55106.0,0.024]
[1725839257985,0.27363056,55107.0,55106.0,0.024]
[1725839258641,0.56397456,55107.0,55106.0,0.024]
[1725839258845,0.56397456,55107.0,55106.0,0.016]
[1725839259324,0.56397456,55107.0,55106.0,0.023]
[1725839259740,0.56397456,55107.0,55106.0,0.019]
[1725839260188,0.56397456,55107.0,55106.0,0.022]
[1725839260406,0.56397456,55107.0,55106.0,0.024]
[1725839260623,0.56397456,55107.0,55106.0,0.021]
[1725839260837,0.56397456,55107.0,55106.0,0.024]
[1725839261748,0.85431856,55107.0,55106.0,0.022]
[1725839261977,0.85431856,55107.0,55106.0,0.011]
[1725839262196,0.85431856,55107.0,55106.0,0.008]
[1725839262632,0.85431856,55107.0,55106.0,0.011]
[1725839262850,0.85431856,55107.0,55106.0,0.015]
[1725839263299,0.46397456,55107.0,55106.0,0.015]
[1725839263748,0.17363056,55107.0,55106.0,0.2104]
[1725839264225,0.17363056,55107.0,55106.0,0.2064]
[1725839264448,0.17363056,55107.0,55106.0,0.2114]
[1725839264887,0.02845856,55107.0,55106.0,0.2114]
[1725839265592,0.435492,55110.0,55109.0,0.008]
[1725839266076,0.535492,55110.0,55109.0,0.008]
[1725839266300,0.535492,55110.0,55109.0,0.01]
[1725839266735,0.535492,55110.0,55109.0,0.009]
[1725839266941,0.535492,55110.0,55109.0,0.021]
[1725839267160,0.537492,55110.0,55109.0,0.012]
[1725839267377,1.05092543,55110.0,55109.0,0.015]
[1725839267595,1.04892543,55110.0,55109.0,0.015]
[1725839268220,0.558492,55110.0,55109.0,0.015]
[1725839268446,0.1,55110.0,55109.0,0.024]
[1725839268672,0.1,55110.0,55109.0,0.3591]
[1725839268886,0.145161,55111.0,55110.0,0.008]
[1725839269131,0.1,55111.0,55110.0,0.008]
[1725839269366,0.245161,55111.0,55110.0,0.005]
[1725839269587,0.145974,55112.0,55111.0,0.003]
[1725839269808,0.168974,55112.0,55111.0,0.05573]
[1725839270236,0.000815,55112.0,55111.0,0.06473]
[1725839270443,0.000815,55112.0,55111.0,0.209891]
[1725839271587,0.000815,55112.0,55111.0,0.500214]
[1725839271821,0.000815,55112.0,55111.0,0.790537]
[1725839272053,0.000815,55112.0,55111.0,1.129637]
[1725839272275,0.000815,55112.0,55111.0,1.125637]
[1725839272728,0.000815,55112.0,55111.0,1.138637]
[1725839273019,0.000815,55112.0,55111.0,1.134637]
[1725839273494,0.000815,55112.0,55111.0,0.166161]
[1725839273714,0.000815,55112.0,55111.0,0.168161]
[1725839273952,0.000815,55112.0,55111.0,0.025]
[1725839273953,0.145973,55112.0,55111.0,0.025]
[1725839274183,0.826607,55112.0,55111.0,0.014]
[1725839274414,1.194707,55112.0,55111.0,0.023]
[1725839275784,1.194707,55112.0,55111.0,0.014]
[1725839276015,1.184707,55112.0,55111.0,0.025]
[1725839276238,0.725807,55111.0,55110.0,0.003]
[1725839276461,0.850807,55111.0,55110.0,0.003]
[1725839279180,0.851807,55111.0,55110.0,0.003]
[1725839279662,0.850807,55111.0,55110.0,0.003]
[1725839281654,0.850807,55111.0,55110.0,0.004]
[1725839281884,1.32303,55111.0,55110.0,0.001]
[1725839282117,1.32303,55111.0,55110.0,0.003]
[1725839282582,1.32303,55111.0,55110.0,0.002]
[1725839282797,1.32303,55111.0,55110.0,0.004]
[1725839283278,1.32303,55111.0,55110.0,0.002]
[1725839283764,1.32303,55111.0,55109.0,0.00163]
[1725839283765,0.72782,55110.0,55109.0,0.00163]
[1725839283986,0.85082,55110.0,55109.0,0.00163]
[1725839284516,0.85082,55110.0,55109.0,0.696696]
[1725839284517,0.1,55110.0,55109.0,0.696696]
[1725839284748,0.000815,55112.0,55109.0,0.9115326]
[1725839284985,0.000815,55112.0,55111.0,0.155161]
[1725839285223,0.000815,55112.0,55111.0,0.444484]
[1725839285454,0.000815,55112.0,55111.0,0.57938516]
[1725839285897,0.000815,55112.0,55111.0,0.153161]
[1725839286112,0.000815,55112.0,55111.0,0.443484]
[1725839286543,0.001815,55112.0,55111.0,0.167161]
[1725839286770,0.001815,55112.0,55111.0,0.179161]
[1725839287215,0.001815,55112.0,55111.0,0.469484]
[1725839287653,0.001815,55112.0,55111.0,0.5994192]
[1725839287869,0.000815,55112.0,55111.0,0.5874192]
[1725839288097,0.000815,55112.0,55111.0,0.5754192]
[1725839288535,0.000815,55112.0,55111.0,0.8877422]
[1725839288758,0.000815,55112.0,55111.0,0.757807]
[1725839289209,0.000815,55112.0,55111.0,0.735807]
[1725839289425,0.000815,55112.0,55111.0,0.748807]
[1725839289657,0.000815,55112.0,55111.0,0.761807]
[1725839290769,0.000815,55112.0,55111.0,0.748807]
[1725839291009,0.000815,55112.0,55111.0,1.7226975]
[1725839291491,0.000815,55112.0,55111.0,0.998184]
[1725839291705,0.000815,55112.0,55111.0,0.971184]
[1725839291928,0.000815,55112.0,55111.0,1.261507]
[1725839292153,0.000815,55112.0,55111.0,1.289507]
[1725839292404,0.43629,55112.0,55111.0,0.014]
[1725839292619,0.43629,55112.0,55111.0,0.028]
[1725839292620,0.247973,55112.0,55111.0,0.028]
[1725839292830,0.29943045,55112.0,55111.0,0.014]
[1725839293250,0.270973,55112.0,55111.0,0.028]
[1725839293458,0.56129,55112.0,55111.0,0.028]
[1725839293674,0.000815,55112.0,55111.0,0.048576]
[1725839293906,0.000815,55112.0,55111.0,0.012]
[1725839294126,0.000815,55112.0,55111.0,0.171161]
[1725839294346,0.000815,55112.0,55111.0,0.026]
[1725839294556,0.000815,55112.0,55111.0,0.012]
[1725839294773,0.000815,55112.0,55111.0,0.026]
[1725839294991,0.000815,55112.0,55111.0,0.04]
[1725839295202,0.000815,55112.0,55111.0,0.026]
[1725839295441,0.000815,55112.0,55111.0,0.024]
[1725839295646,0.000815,55112.0,55111.0,0.012]
[1725839295865,0.000815,55112.0,55111.0,0.024]
[1725839296204,0.000815,55112.0,55111.0,0.5581]
[1725839296311,0.05502844,55112.0,55111.0,0.691261]
[1725839296539,0.05502844,55112.0,55111.0,0.705261]
[1725839296976,0.0551714,55112.0,55111.0,0.719261]
[1725839297248,0.10952781,55112.0,55111.0,0.719261]
[1725839297505,0.08241688,55112.0,55111.0,1.009584]
[1725839297789,0.08241688,55112.0,55111.0,1.1399021]
[1725839298253,0.04139675,55112.0,55111.0,1.4162251]
[1725839298494,0.08245754,55112.0,55111.0,1.4162251]
[1725839298768,0.08245754,55112.0,55111.0,1.008584]
[1725839298984,0.15049331,55112.0,55111.0,0.995584]
[1725839299210,0.13670602,55112.0,55111.0,0.995584]
[1725839299650,0.10892844,55114.0,55113.0,0.012]
[1725839299878,0.25408144,55114.0,55113.0,0.003]
[1725839300110,0.29597444,55114.0,55113.0,0.003]
[1725839300323,0.187046,55114.0,55113.0,0.003]
[1725839300543,0.187046,55114.0,55113.0,0.012]
[1725839300998,0.041893,55114.0,55113.0,0.0294423]
[1725839301240,0.15086675,55114.0,55113.0,0.0414423]
[1725839301469,0.15086611,55114.0,55113.0,0.0414423]
[1725839301698,0.145151,55115.0,55113.0,0.0414423]
[1725839301699,0.145151,55115.0,55113.0,0.0534423]
[1725839301921,0.02914147,55114.0,55113.0,0.036]
[1725839302834,0.02914147,55114.0,55113.0,0.024]
[1725839303067,0.13621644,55116.0,55114.0,0.009]
[1725839303289,0.13621644,55116.0,55115.0,0.002]
[1725839303518,0.13621644,55116.0,55115.0,0.147151]
[1725839303740,0.16600162,55116.0,55115.0,0.680951]
[1725839304463,0.16600162,55116.0,55115.0,0.690951]
[1725839304691,0.16600162,55116.0,55115.0,0.82372997]
[1725839304896,0.16600162,55116.0,55115.0,0.83272997]
[1725839305335,0.16600162,55116.0,55115.0,1.12303197]
[1725839305550,0.16600162,55116.0,55115.0,1.41333397]
[1725839305764,0.02978518,55116.0,55115.0,1.41333397]
[1725839305971,0.02845579,55117.0,55116.0,0.155148]
[1725839306189,0.10896778,55118.0,55117.0,0.145145]
[1725839306436,0.10896778,55118.0,55117.0,0.435436]
[1725839306652,0.03326681,55119.0,55118.0,0.145141]
[1725839306869,0.10895651,55119.0,55118.0,0.145141]
[1725839307087,0.14246829,55119.0,55118.0,0.145141]
[1725839307977,0.14246829,55119.0,55118.0,0.155141]